fUSD/lending_fUSD_20250209
["ID","MTS","AMOUNT","RATE_DAILY","PERIOD"]
[352368793,1739064657075,-500.0,0.00010547,2]
[352368794,1739064657084,-487.13,0.00010547,2]
[352368795,1739064657093,-500.0,0.00010547,2]
[352368796,1739064657103,-500.0,0.00010547,2]
[352368797,1739064657112,-591.01,0.00010547,2]
[352368798,1739064657121,-500.78,0.00010547,2]
[352368799,1739064657131,-500.0,0.00010547,2]
[352368800,1739064657141,-500.0,0.00010547,2]
[352368801,1739064657150,-500.0,0.00010547,2]
[352368802,1739064657160,-500.0,0.00010547,2]
[352368803,1739064657171,-500.0,0.00010547,2]
[352368804,1739064657180,-500.0,0.00010547,2]
[352368805,1739064657189,-500.0,0.00010547,2]
[352368806,1739064657199,-500.0,0.00010547,2]
[352368807,1739064657208,-500.0,0.00010547,2]
[352368808,1739064657218,-524.96,0.00010547,2]
[352368809,1739064657227,-538.42,0.00010547,2]
[352368810,1739064657237,-500.0,0.00010547,2]
[352368811,1739064657247,-500.0,0.00010547,2]
[352368812,1739064657258,-540.74,0.00010547,2]
[352368813,1739064657266,-517.99,0.00010547,2]
[352368814,1739064657276,-566.23,0.00010547,2]
[352368815,1739064657285,-500.0,0.00010547,2]
[352368816,1739064657294,-500.0,0.00010547,2]
[352368817,1739064657303,-500.0,0.00010547,2]
[352368818,1739064657312,-500.0,0.00010547,2]
[352368819,1739064657321,-500.0,0.00010547,2]
[352368820,1739064657330,-509.14320955,0.00010547,2]
[352368821,1739064657339,-849.0,0.00010566,2]
[352368822,1739064657347,-503.26976558,0.00010581,2]
[352368823,1739064657358,-421.11,0.00010597,2]
[352368824,1739064657366,-2100.0,0.000106,3]
[352368825,1739064657375,-196.188217,0.00010665,2]
[352368826,1739064657385,-500.0,0.00010678,2]
[352368827,1739064657394,-500.0,0.00010678,2]
[352368828,1739064657403,-500.0,0.00010678,2]
[352368829,1739064657413,-1135.49,0.00010678,2]
[352368830,1739064657422,-1491.25,0.00010678,2]
[352368831,1739064657432,-500.0,0.00010678,2]
[352368832,1739064657441,-1096.4,0.00010678,2]
[352368833,1739064657450,-1926.31,0.00010678,2]
[352368834,1739064657459,-1553.33,0.00010678,2]
[352368835,1739064657623,-524.3,0.00010678,2]
[352368836,1739064657633,-1505.29,0.00010678,2]
[352368837,1739064657642,-500.0,0.00010678,2]
[352368838,1739064657651,-500.0,0.00010678,2]
[352368839,1739064657660,-765.69,0.00010678,2]
[352368840,1739064657669,-500.0,0.00010678,2]
[352368841,1739064657678,-500.0,0.00010678,2]
[352368842,1739064657688,-500.0,0.00010678,2]
[352368843,1739064657701,-1250.11,0.00010678,2]
[352368844,1739064657710,-500.0,0.00010678,2]
[352368845,1739064657719,-500.0,0.00010678,2]
[352368846,1739064657728,-510.27248189,0.00010678,2]
[352368847,1739064657739,-1265.23,0.00010679,2]
[352368848,1739064657748,-942.17,0.00010679,2]
[352368849,1739064657757,-571.56,0.00010679,2]
[352368850,1739064657767,-608.72,0.00010679,2]
[352368851,1739064657777,-903.56,0.00010679,2]
[352368852,1739064657786,-761.356549,0.00010679,2]
[352368853,1739064657795,-1567.35,0.00010679,2]
[352368854,1739064657804,-500.0,0.00010679,2]
[352368855,1739064657813,-500.0,0.00010679,2]
[352368856,1739064657824,-1529.17,0.00010679,2]
[352368857,1739064657834,-820.43,0.00010679,2]
[352368858,1739064657843,-2229.24,0.00010679,2]
[352368859,1739064657853,-614.12,0.00010679,2]
[352368860,1739064657861,-635.519756,0.00010679,2]
[352368861,1739064657870,-824.85,0.00010679,2]
[352368862,1739064657879,-1108.77,0.00010679,2]
[352368863,1739064657889,-500.0,0.00010679,2]
[352368864,1739064657898,-1431.97,0.00010679,2]
[352368865,1739064657907,-1577.26,0.00010679,2]
[352368866,1739064657917,-750.94,0.00010679,2]
[352368867,1739064657929,-1128.64,0.00010679,2]
[352368868,1739064657938,-985.47,0.00010679,2]
[352368869,1739064657948,-1364.15,0.00010679,2]
[352368870,1739064657957,-2826.52,0.00010679,2]
[352368871,1739064657967,-2171.01,0.00010679,2]
[352368872,1739064657976,-1345.65,0.00010679,2]
[352368873,1739064657985,-757.14,0.00010679,2]
[352368874,1739064657994,-500.0,0.00010679,2]
[352368875,1739064658005,-500.0,0.00010679,2]
[352368876,1739064658014,-1180.09,0.00010679,2]
[352368877,1739064658023,-500.0,0.00010679,2]
[352368878,1739064658033,-150.431627,0.00010679,2]
[352368879,1739064658043,-500.0,0.00010679,2]
[352368880,1739064658053,-1527.24,0.00010679,2]
[352368881,1739064658062,-1297.73,0.00010679,2]
[352368882,1739064658072,-879.7,0.00010679,2]
[352368883,1739064658083,-661.94,0.00010679,2]
[352368884,1739064658094,-1376.76,0.00010679,2]
[352368885,1739064658104,-500.0,0.00010679,2]
[352368886,1739064658115,-1567.33,0.00010679,2]
[352368887,1739064658124,-500.0,0.00010679,2]
[352368888,1739064658133,-1076.91,0.00010679,2]
[352368889,1739064658143,-2050.57,0.00010679,2]
[352368890,1739064658152,-593.35,0.00010679,2]
[352368891,1739064658162,-650.17,0.0001068,2]
[352368892,1739064658172,-500.0,0.0001068,2]
[352368893,1739064658182,-500.0,0.0001068,2]
[352368894,1739064658191,-500.0,0.0001068,2]
[352368895,1739064658201,-676.84,0.0001068,2]
[352368896,1739064658210,-500.0,0.0001068,2]
[352368897,1739064658219,-546.96,0.0001068,2]
[352368898,1739064658228,-500.0,0.0001068,2]
[352368899,1739064658238,-500.0,0.0001068,2]
[352368900,1739064658250,-500.0,0.0001068,2]
[352368901,1739064658259,-500.0,0.0001068,2]
[352368902,1739064658268,-500.0,0.0001068,2]
[352368903,1739064658278,-500.0,0.0001068,2]
[352368904,1739064658288,-576.95,0.0001068,2]
[352368905,1739064658297,-500.0,0.0001068,2]
[352368906,1739064658307,-500.0,0.0001068,2]
[352368907,1739064658316,-500.0,0.0001068,2]
[352368908,1739064658326,-500.0,0.0001068,2]
[352368909,1739064658335,-525.03,0.0001068,2]
[352368910,1739064658345,-688.22,0.0001068,2]
[352368911,1739064658355,-500.0,0.0001068,2]
[352368912,1739064658364,-500.0,0.0001068,2]
[352368913,1739064658374,-500.0,0.0001068,2]
[352368914,1739064658384,-751.95,0.0001068,2]
[352368915,1739064658393,-500.0,0.0001068,2]
[352368916,1739064658403,-500.0,0.0001068,2]
[352368917,1739064658413,-500.0,0.0001068,2]
[352368918,1739064658428,-500.0,0.0001068,2]
[352368919,1739064658438,-751.58,0.0001068,2]
[352368920,1739064658449,-500.0,0.0001068,2]
[352368921,1739064658460,-500.0,0.0001068,2]
[352368922,1739064658470,-500.0,0.0001068,2]
[352368923,1739064658480,-713.69,0.0001068,2]
[352368924,1739064658490,-500.0,0.0001068,2]
[352368925,1739064658500,-500.0,0.0001068,2]
[352368926,1739064658511,-500.0,0.0001068,2]
[352368927,1739064658520,-500.0,0.0001068,2]
[352368928,1739064658530,-500.0,0.0001068,2]
[352368929,1739064658540,-743.85,0.0001068,2]
[352368930,1739064658550,-778.11,0.0001068,2]
[352368931,1739064658559,-686.06,0.0001068,2]
[352368932,1739064658569,-500.0,0.0001068,2]
[352368933,1739064658578,-500.0,0.0001068,2]
[352368934,1739064658588,-500.0,0.0001068,2]
[352368935,1739064658598,-500.0,0.0001068,2]
[352368936,1739064658607,-500.0,0.0001068,2]
[352368937,1739064658616,-640.12,0.0001068,2]
[352368938,1739064658625,-625.79,0.0001068,2]
[352368939,1739064658635,-500.0,0.0001068,2]
[352368940,1739064658644,-500.0,0.0001068,2]
[352368941,1739064658654,-620.92,0.0001068,2]
[352368942,1739064658664,-677.96,0.0001068,2]
[352368943,1739064658677,-500.0,0.0001068,2]
[352368944,1739064658686,-500.0,0.0001068,2]
[352368945,1739064658699,-500.0,0.0001068,2]
[352368946,1739064658708,-500.0,0.0001068,2]
[352368947,1739064658718,-500.0,0.0001068,2]
[352368948,1739064658728,-500.0,0.0001068,2]
[352368949,1739064658739,-2934.3,0.0001068,2]
[352368950,1739064658749,-500.0,0.0001068,2]
[352368951,1739064658759,-1525.17,0.0001068,2]
[352368952,1739064658770,-774.95,0.0001068,2]
[352368953,1739064658779,-1829.66,0.0001068,2]
[352368954,1739064658789,-789.04,0.0001068,2]
[352368955,1739064658798,-997.18,0.0001068,2]
[352368956,1739064658807,-1816.27,0.0001068,2]
[352368957,1739064658817,-500.0,0.0001068,2]
[352368958,1739064658826,-1562.18,0.0001068,2]
[352368959,1739064658835,-680.61,0.0001068,2]
[352368960,1739064658845,-500.0,0.0001068,2]
[352368961,1739064658854,-500.0,0.0001068,2]
[352368962,1739064658864,-1099.38,0.0001068,2]
[352368963,1739064658873,-500.0,0.0001068,2]
[352368964,1739064658883,-500.0,0.0001068,2]
[352368965,1739064658892,-533.58,0.0001068,2]
[352368966,1739064658901,-1750.36,0.0001068,2]
[352368967,1739064658911,-500.0,0.0001068,2]
[352368968,1739064658924,-500.0,0.0001068,2]
[352368969,1739064658933,-500.0,0.0001068,2]
[352368970,1739064658943,-1168.81,0.0001068,2]
[352368971,1739064658952,-500.0,0.0001068,2]
[352368972,1739064658961,-919.27,0.0001068,2]
[352368973,1739064658971,-500.0,0.0001068,2]
[352368974,1739064658981,-635.21,0.0001068,2]
[352368975,1739064658990,-500.0,0.0001068,2]
[352368976,1739064658999,-500.0,0.0001068,2]
[352368977,1739064659008,-500.0,0.0001068,2]
[352368978,1739064659018,-2329.56,0.0001068,2]
[352368979,1739064659027,-841.19,0.0001068,2]
[352368980,1739064659036,-731.35,0.0001068,2]
[352368981,1739064659046,-830.41,0.0001068,2]
[352368982,1739064659055,-880.9,0.0001068,2]
[352368983,1739064659064,-500.0,0.0001068,2]
[352368984,1739064659073,-523.25,0.0001068,2]
[352368985,1739064659083,-500.0,0.0001068,2]
[352368986,1739064659093,-565.26,0.0001068,2]
[352368987,1739064659102,-610.98,0.0001068,2]
[352368988,1739064659112,-500.0,0.0001068,2]
[352368989,1739064659121,-500.0,0.0001068,2]
[352368990,1739064659130,-1181.58,0.0001068,2]
[352368991,1739064659140,-500.0,0.0001068,2]
[352368992,1739064659150,-2957.55,0.0001068,2]
[352368993,1739064659160,-1035.92,0.0001068,2]
[352368994,1739064659170,-525.11,0.0001068,2]
[352368995,1739064659180,-1347.93,0.0001068,2]
[352368996,1739064659190,-666.15,0.0001068,2]
[352368997,1739064659199,-500.0,0.0001068,2]
[352368998,1739064659209,-1814.49,0.0001068,2]
[352368999,1739064659218,-251.06676781,0.00010681,2]
[352369000,1739064659228,-634.38,0.00010681,2]
[352369001,1739064659238,-500.0,0.00010681,2]
[352369002,1739064659248,-500.0,0.00010681,2]
[352369003,1739064659257,-500.0,0.00010681,2]
[352369004,1739064659267,-500.0,0.00010681,2]
[352369005,1739064659277,-500.0,0.00010681,2]
[352369006,1739064659286,-632.94736526,0.00010681,2]
[352369007,1739064659296,-500.0,0.00010681,2]
[352369008,1739064659306,-500.0,0.00010681,2]
[352369009,1739064659315,-500.0,0.00010681,2]
[352369010,1739064659325,-500.0,0.00010681,2]
[352369011,1739064659335,-501.4,0.00010681,2]
[352369012,1739064659344,-500.0,0.00010681,2]
[352369013,1739064659353,-537.56493582,0.00010681,2]
[352369014,1739064659363,-561.15,0.00010681,2]
[352369015,1739064659373,-500.0,0.00010681,2]
[352369016,1739064659382,-500.0,0.00010681,2]
[352369017,1739064659391,-500.0,0.00010681,2]
[352369018,1739064659401,-500.0,0.00010681,2]
[352369019,1739064659410,-500.0,0.00010681,2]
[352369020,1739064659421,-500.0,0.00010681,2]
[352369021,1739064659430,-500.0,0.00010681,2]
[352369022,1739064659440,-500.0,0.00010681,2]
[352369023,1739064659449,-500.0,0.00010681,2]
[352369024,1739064659458,-500.0,0.00010681,2]
[352369025,1739064659468,-604.06789634,0.00010681,2]
[352369026,1739064659477,-500.0,0.00010681,2]
[352369027,1739064659487,-500.0,0.00010681,2]
[352369028,1739064659496,-500.0,0.00010681,2]
[352369029,1739064659506,-506.01985491,0.00010681,2]
[352369030,1739064659515,-401.10541059,0.00010681,2]
[352369031,1739064659525,-204.27,0.00010681,2]
[352369032,1739064659535,-516.93813534,0.00010681,2]
[352369033,1739064659544,-189.22678059,0.00010681,2]
[352369034,1739064659554,-500.0,0.00010681,2]
[352369035,1739064659564,-500.0,0.00010681,2]
[352369036,1739064659573,-500.0,0.00010681,2]
[352369037,1739064659582,-594.52,0.00010681,2]
[352369038,1739064659591,-4807.33,0.00010681,2]
[352369039,1739064659601,-500.0,0.00010681,2]
[352369040,1739064659611,-500.0,0.00010681,2]
[352369041,1739064659621,-858.03,0.00010681,2]
[352369042,1739064659631,-500.0,0.00010681,2]
[352369043,1739064659640,-500.0,0.00010681,2]
[352369044,1739064659650,-921.88,0.00010681,2]
[352369045,1739064659660,-500.0,0.00010681,2]
[352369046,1739064659673,-578.18,0.00010681,2]
[352369047,1739064659682,-824.93,0.00010681,2]
[352369048,1739064659695,-2677.06,0.00010681,2]
[352369049,1739064659705,-500.0,0.00010681,2]
[352369050,1739064659715,-500.0,0.00010681,2]
[352369051,1739064659725,-500.0,0.00010681,2]
[352369052,1739064659735,-616.58046746,0.00010681,2]
[352369053,1739064659745,-1057.44,0.00010681,2]
[352369054,1739064659756,-500.0,0.00010681,2]
[352369055,1739064659767,-1172.16,0.00010681,2]
[352369056,1739064659779,-1000.0,0.00010681,2]
[352369057,1739064659790,-500.0,0.00010681,2]
[352369058,1739064659800,-922.59,0.00010681,2]
[352369059,1739064659811,-500.0,0.00010681,2]
[352369060,1739064659822,-500.0,0.00010681,2]
[352369061,1739064659832,-500.0,0.00010681,2]
[352369062,1739064659843,-550.9,0.00010681,2]
[352369063,1739064659853,-1998.27,0.00010681,2]
[352369064,1739064659863,-500.0,0.00010681,2]
[352369065,1739064659873,-500.0,0.00010681,2]
[352369066,1739064659883,-2158.17,0.00010681,2]
[352369067,1739064659892,-500.0,0.00010681,2]
[352369068,1739064659902,-500.0,0.00010681,2]
[352369069,1739064659911,-309.8108988,0.00010681,2]
[352369070,1739064659923,-500.0,0.00010681,2]
[352369071,1739064659933,-500.0,0.00010681,2]
[352369072,1739064659943,-500.0,0.00010681,2]
[352369073,1739064659952,-500.0,0.00010681,2]
[352369074,1739064659961,-500.0,0.00010681,2]
[352369075,1739064659971,-500.0,0.00010681,2]
[352369076,1739064659980,-504.34594943,0.00010681,2]
[352369077,1739064659989,-500.0,0.00010681,2]
[352369078,1739064659998,-515.1451514,0.00010681,2]
[352369079,1739064660008,-500.0,0.00010682,2]
[352369080,1739064660017,-500.0,0.00010682,2]
[352369081,1739064660027,-596.98187065,0.00010682,2]
[352369082,1739064660036,-551.51,0.00010682,2]
[352369083,1739064660091,-495.36148762,0.00010684,2]
[352369084,1739064660100,-500.0,0.00010684,2]
[352369085,1739064660109,-500.0,0.00010684,2]
[352369086,1739064660119,-500.0,0.00010684,2]
[352369087,1739064660128,-500.0,0.00010684,2]
[352369088,1739064660137,-500.0,0.00010684,2]
[352369089,1739064660147,-500.0,0.00010684,2]
[352369090,1739064660156,-500.0,0.00010684,2]
[352369091,1739064660167,-500.0,0.00010684,2]
[352369092,1739064660176,-512.17,0.00010684,2]
[352369093,1739064660186,-455.74,0.00010684,2]
[352369094,1739064660196,-500.0,0.00010684,2]
[352369095,1739064660205,-500.0,0.00010684,2]
[352369096,1739064660216,-215.34,0.00010684,2]
[352369097,1739064660226,-431.44,0.00010684,2]
[352369098,1739064660236,-212.7,0.00010684,2]
[352369099,1739064660246,-500.0,0.00010684,2]
[352369100,1739064660256,-500.0,0.00010684,2]
[352369101,1739064660266,-500.0,0.00010684,2]
[352369102,1739064660275,-271.81,0.00010684,2]
[352369103,1739064660285,-500.0,0.00010684,2]
[352369104,1739064660294,-159.37,0.00010684,2]
[352369105,1739064660304,-500.0,0.00010684,2]
[352369106,1739064660315,-500.0,0.00010684,2]
[352369107,1739064660324,-500.0,0.00010684,2]
[352369108,1739064660333,-500.0,0.00010684,2]
[352369109,1739064660343,-500.0,0.00010684,2]
[352369110,1739064660352,-500.0,0.00010684,2]
[352369111,1739064660362,-366.73,0.00010684,2]
[352369112,1739064660373,-520.14,0.00010684,2]
[352369113,1739064660382,-500.0,0.00010684,2]
[352369114,1739064660392,-470.29,0.00010684,2]
[352369115,1739064660402,-524.96,0.00010684,2]
[352369116,1739064660412,-538.42,0.00010684,2]
[352369117,1739064660428,-262.25,0.00010684,2]
[352369118,1739064660438,-540.69,0.00010684,2]
[352369119,1739064660448,-517.99,0.00010684,2]
[352369120,1739064660458,-500.0,0.00010684,2]
[352369121,1739064660468,-500.0,0.00010684,2]
[352369122,1739064660478,-500.0,0.00010684,2]
[352369123,1739064660489,-500.0,0.00010684,2]
[352369124,1739064660499,-500.0,0.00010684,2]
[352369125,1739064660508,-2600.0,0.000107,3]
[352369126,1739064660518,-1000.0,0.00010721,2]
[352369127,1739064660527,-330.71068723,0.00010724,2]
[352369128,1739064660537,-150.826,0.00010777,2]
[352369129,1739064660546,-783.583,0.00010777,2]
[352369130,1739064660556,-6577.889,0.000108,2]
[352369131,1739064660565,-500.0,0.000108,3]
[352369132,1739064660575,-426.25224996,0.00010812,2]
[352369133,1739064660585,-500.0,0.00010815,2]
[352369134,1739064660594,-500.0,0.00010815,2]
[352369135,1739064660604,-500.0,0.00010815,2]
[352369136,1739064660613,-1135.49,0.00010815,2]
[352369137,1739064660622,-1491.25,0.00010815,2]
[352369138,1739064660632,-500.0,0.00010815,2]
[352369139,1739064660641,-1096.4,0.00010815,2]
[352369140,1739064660650,-1926.31,0.00010815,2]
[352369141,1739064660660,-1553.33,0.00010815,2]
[352369142,1739064660671,-524.3,0.00010815,2]
[352369143,1739064660681,-1505.29,0.00010815,2]
[352369144,1739064660691,-500.0,0.00010815,2]
[352369145,1739064660703,-500.0,0.00010815,2]
[352369146,1739064660713,-765.69,0.00010815,2]
[352369147,1739064660723,-500.0,0.00010815,2]
[352369148,1739064660732,-348.53926186,0.00010815,2]
[352369149,1739064660742,-500.0,0.00010815,2]
[352369150,1739064660752,-1250.11,0.00010815,2]
[352369151,1739064660761,-508.52702746,0.00010815,2]
[352369152,1739064660771,-500.0,0.00010815,2]
[352369153,1739064660781,-1265.23,0.00010816,2]
[352369154,1739064660790,-942.17,0.00010816,2]
[352369155,1739064660799,-571.56,0.00010816,2]
[352369156,1739064660809,-608.72,0.00010816,2]
[352369157,1739064660819,-903.56,0.00010816,2]
[352369158,1739064660828,-761.356549,0.00010816,2]
[352369159,1739064660837,-1567.35,0.00010816,2]
[352369160,1739064660847,-500.0,0.00010816,2]
[352369161,1739064660856,-500.0,0.00010816,2]
[352369162,1739064660865,-1529.17,0.00010816,2]
[352369163,1739064660875,-820.43,0.00010816,2]
[352369164,1739064660884,-2229.24,0.00010816,2]
[352369165,1739064660893,-614.12,0.00010816,2]
[352369166,1739064660903,-635.519756,0.00010816,2]
[352369167,1739064660912,-824.85,0.00010816,2]
[352369168,1739064660925,-1108.77,0.00010816,2]
[352369169,1739064660935,-500.0,0.00010816,2]
[352369170,1739064660945,-1431.97,0.00010816,2]
[352369171,1739064660954,-1577.26,0.00010816,2]
[352369172,1739064660964,-750.94,0.00010816,2]
[352369173,1739064660974,-1128.64,0.00010816,2]
[352369174,1739064660984,-985.47,0.00010816,2]
[352369175,1739064660993,-1364.15,0.00010816,2]
[352369176,1739064661002,-2826.52,0.00010816,2]
[352369177,1739064661011,-2171.01,0.00010816,2]
[352369178,1739064661021,-1345.65,0.00010816,2]
[352369179,1739064661031,-757.14,0.00010816,2]
[352369180,1739064661041,-500.0,0.00010816,2]
[352369181,1739064661050,-1180.09,0.00010816,2]
[352369182,1739064661059,-500.0,0.00010816,2]
[352369183,1739064661069,-150.431627,0.00010816,2]
[352369184,1739064661078,-500.0,0.00010816,2]
[352369185,1739064661088,-1527.24,0.00010816,2]
[352369186,1739064661097,-1297.73,0.00010816,2]
[352369187,1739064661107,-879.7,0.00010816,2]
[352369188,1739064661116,-661.94,0.00010816,2]
[352369189,1739064661126,-1376.76,0.00010816,2]
[352369190,1739064661135,-1567.33,0.00010816,2]
[352369191,1739064661145,-500.0,0.00010816,2]
[352369192,1739064661154,-1076.91,0.00010816,2]
[352369193,1739064661163,-2050.57,0.00010816,2]
[352369194,1739064661175,-593.35,0.00010816,2]
[352369195,1739064661184,-650.17,0.00010817,2]
[352369196,1739064661193,-500.0,0.00010817,2]
[352369197,1739064661203,-500.0,0.00010817,2]
[352369198,1739064661213,-500.0,0.00010817,2]
[352369199,1739064661223,-676.84,0.00010817,2]
[352369200,1739064661232,-500.0,0.00010817,2]
[352369201,1739064661242,-546.96,0.00010817,2]
[352369202,1739064661252,-500.0,0.00010817,2]
[352369203,1739064661262,-500.0,0.00010817,2]
[352369204,1739064661271,-500.0,0.00010817,2]
[352369205,1739064661281,-403.09859588,0.00010817,2]
[352369206,1739064661290,-520.49,0.00010817,2]
[352369207,1739064661300,-500.0,0.00010817,2]
[352369208,1739064661309,-576.95,0.00010817,2]
[352369209,1739064661319,-500.0,0.00010817,2]
[352369210,1739064661328,-500.0,0.00010817,2]
[352369211,1739064661338,-500.0,0.00010817,2]
[352369212,1739064661348,-500.0,0.00010817,2]
[352369213,1739064661358,-525.03,0.00010817,2]
[352369214,1739064661368,-688.22,0.00010817,2]
[352369215,1739064661378,-500.0,0.00010817,2]
[352369216,1739064661387,-500.0,0.00010817,2]
[352369217,1739064661397,-332.18266161,0.00010817,2]
[352369218,1739064661406,-751.95,0.00010817,2]
[352369219,1739064661419,-500.0,0.00010817,2]
[352369220,1739064661428,-500.0,0.00010817,2]
[352369221,1739064661438,-500.0,0.00010817,2]
[352369222,1739064661447,-751.58,0.00010817,2]
[352369223,1739064661456,-500.0,0.00010817,2]
[352369224,1739064661465,-500.0,0.00010817,2]
[352369225,1739064661475,-500.0,0.00010817,2]
[352369226,1739064661484,-713.69,0.00010817,2]
[352369227,1739064661495,-500.0,0.00010817,2]
[352369228,1739064661504,-500.0,0.00010817,2]
[352369229,1739064661514,-500.0,0.00010817,2]
[352369230,1739064661524,-500.0,0.00010817,2]
[352369231,1739064661533,-500.0,0.00010817,2]
[352369232,1739064661543,-743.85,0.00010817,2]
[352369233,1739064661552,-778.11,0.00010817,2]
[352369234,1739064661561,-686.06,0.00010817,2]
[352369235,1739064661570,-500.0,0.00010817,2]
[352369236,1739064661579,-500.0,0.00010817,2]
[352369237,1739064661588,-500.0,0.00010817,2]
[352369238,1739064661598,-500.0,0.00010817,2]
[352369239,1739064661607,-500.0,0.00010817,2]
[352369240,1739064661618,-640.12,0.00010817,2]
[352369241,1739064661628,-625.79,0.00010817,2]
[352369242,1739064661638,-335.35213253,0.00010817,2]
[352369243,1739064661648,-500.0,0.00010817,2]
[352369244,1739064661658,-620.92,0.00010817,2]
[352369245,1739064661668,-677.96,0.00010817,2]
[352369246,1739064661678,-500.0,0.00010817,2]
[352369247,1739064661688,-500.0,0.00010817,2]
[352369248,1739064661701,-500.0,0.00010817,2]
[352369249,1739064661710,-500.0,0.00010817,2]
[352369250,1739064661722,-500.0,0.00010817,2]
[352369251,1739064661733,-2934.3,0.00010817,2]
[352369252,1739064661742,-500.0,0.00010817,2]
[352369253,1739064661751,-1525.17,0.00010817,2]
[352369254,1739064661760,-774.95,0.00010817,2]
[352369255,1739064661770,-1829.66,0.00010817,2]
[352369256,1739064661782,-789.04,0.00010817,2]
[352369257,1739064661792,-997.18,0.00010817,2]
[352369258,1739064661801,-1816.27,0.00010817,2]
[352369259,1739064661811,-500.0,0.00010817,2]
[352369260,1739064661820,-1562.18,0.00010817,2]
[352369261,1739064661830,-680.61,0.00010817,2]
[352369262,1739064661840,-557.43,0.00010817,2]
[352369263,1739064661849,-515.19,0.00010817,2]
[352369264,1739064661859,-1099.38,0.00010817,2]
[352369265,1739064661868,-500.0,0.00010817,2]
[352369266,1739064661877,-500.0,0.00010817,2]
[352369267,1739064661887,-533.58,0.00010817,2]
[352369268,1739064661896,-1750.36,0.00010817,2]
[352369269,1739064661906,-570.33,0.00010817,2]
[352369270,1739064661916,-500.0,0.00010817,2]
[352369271,1739064661925,-597.26,0.00010817,2]
[352369272,1739064661935,-1168.81,0.00010817,2]
[352369273,1739064661945,-500.0,0.00010817,2]
[352369274,1739064661955,-919.27,0.00010817,2]
[352369275,1739064661964,-500.0,0.00010817,2]
[352369276,1739064661975,-635.21,0.00010817,2]
[352369277,1739064661985,-500.0,0.00010817,2]
[352369278,1739064662000,-500.0,0.00010817,2]
[352369279,1739064662011,-500.0,0.00010817,2]
[352369280,1739064662021,-2329.56,0.00010817,2]
[352369281,1739064662030,-841.19,0.00010817,2]
[352369282,1739064662040,-731.35,0.00010817,2]
[352369283,1739064662049,-830.41,0.00010817,2]
[352369284,1739064662059,-880.9,0.00010817,2]
[352369285,1739064662069,-500.0,0.00010817,2]
[352369286,1739064662080,-523.25,0.00010817,2]
[352369287,1739064662090,-500.0,0.00010817,2]
[352369288,1739064662100,-565.26,0.00010817,2]
[352369289,1739064662110,-610.98,0.00010817,2]
[352369290,1739064662120,-500.0,0.00010817,2]
[352369291,1739064662129,-500.0,0.00010817,2]
[352369292,1739064662141,-1181.58,0.00010817,2]